fUST/lending_fUST_20240118
["ID","MTS","AMOUNT","RATE_DAILY","PERIOD"]
[312017380,1705551039220,-322.89759673,0.00018151,2]
[312017382,1705551039229,-18891.91469266,0.00018152,2]
[312017384,1705551039237,-155.729433,0.00018154,2]
[312017386,1705551039246,-309.95350775,0.00018156,2]
[312017388,1705551039255,-1066.94833283,0.00018164,2]
[312017390,1705551039264,-154.9690062,0.00018277,2]
[312017392,1705551039272,-2101.67947703,0.00018278,2]
[312017394,1705551039283,-2072.13666013,0.00018278,2]
[312017396,1705551039292,-470.34681749,0.00018278,2]
[312017398,1705551039302,-521.29319614,0.00018281,2]
[312017399,1705551039312,-200.25625434,0.00018285,2]
[312017401,1705551039322,-2705.79329076,0.00018285,2]
[312017403,1705551039331,-1245.62454748,0.00018285,2]
[312017405,1705551039341,-276.55895965,0.00018285,2]
[312017407,1705551039350,-274.19182339,0.00018388,2]
[312017409,1705551039359,-155.22981273,0.00018394,2]
[312017411,1705551039368,-154.98450155,0.00018394,2]
[312017413,1705551039377,-193.39320503,0.00018394,2]
[312017414,1705551039386,-164.90629918,0.00018398,2]
[312017415,1705551039395,-1543.3280261,0.00018398,2]
[312017416,1705551039406,-7949.84974405,0.00018398,2]
[312017417,1705551039414,-361.02080012,0.00018398,2]
[312017418,1705551039424,-224.15290043,0.00018398,2]
[312017419,1705551039433,-160.94667523,0.00018398,2]
[312017420,1705551039442,-155.43342613,0.00018398,2]
[312017421,1705551039451,-5160.11397616,0.00018487,2]
[312017422,1705551039460,-418.6473094,0.00018487,2]
[312017423,1705551039469,-1588.5756211,0.00018487,2]
[312017424,1705551039478,-156.19842082,0.00018487,2]
[312017425,1705551039487,-11025.0083956,0.00018487,2]
[312017426,1705551039496,-213.48133442,0.00018489,2]
[312017427,1705551039506,-230.43875725,0.00018489,2]
[312017428,1705551039515,-173.6978715,0.00018489,2]
[312017429,1705551039524,-224.96733947,0.00018489,2]
[312017430,1705551039537,-155.25269516,0.0001849,2]
[312017431,1705551039546,-176.16694423,0.0001849,2]
[312017432,1705551039555,-233.02926469,0.0001849,2]
[312017433,1705551039564,-183.05526173,0.0001849,2]
[312017434,1705551039573,-154.9690062,0.00018495,2]
[312017435,1705551039582,-157.94207384,0.00018498,2]
[312017436,1705551039591,-155.31797269,0.00018498,2]
[312017437,1705551039600,-260.97111048,0.00018498,2]
[312017438,1705551039610,-379.64847549,0.00018498,2]
[312017439,1705551039619,-1003.32791046,0.000185,2]
[312017440,1705551039628,-172.61810537,0.00018501,2]
[312017441,1705551039637,-310.23933201,0.00018501,2]
[312017442,1705551039645,-191.76364925,0.00018504,2]
[312017443,1705551039654,-155.02790502,0.00018739,2]
[312017444,1705551039663,-155.30882626,0.0001874,2]
[312017445,1705551039673,-202.40837711,0.00018823,2]
[312017446,1705551039682,-155.46711504,0.00018823,2]
[312017447,1705551039692,-679.65547885,0.00018825,2]
[312017448,1705551039701,-165.71349959,0.00018825,2]
[312017449,1705551039711,-309.9070279,0.00018826,2]
[312017450,1705551039720,-156.81264042,0.00018826,2]
[312017451,1705551039729,-200.67546493,0.00018827,2]
[312017452,1705551039738,-1242.90009054,0.00018827,2]
[312017453,1705551039747,-190.87515255,0.00018828,2]
[312017454,1705551039756,-377.16950447,0.00018828,2]
[312017455,1705551039765,-294.37441189,0.00018828,2]
[312017456,1705551039774,-225.08682209,0.00018828,2]
[312017457,1705551039786,-192.65851913,0.00018829,2]
[312017458,1705551039795,-200.0,0.00018829,2]
[312017459,1705551039805,-155.96892002,0.00018829,2]
[312017460,1705551039814,-302.63617592,0.00018829,2]
[312017461,1705551039823,-197.64414411,0.00018829,2]
[312017462,1705551039933,-156.38826721,0.0001883,2]
[312017463,1705551039943,-276000.0,0.00018831,2]
[312017464,1705551039952,-426.63230888,0.000189,2]
[312017465,1705551039961,-307.50614765,0.00018931,2]
[312017466,1705551039971,-155.60667429,0.00018931,2]
[312017467,1705551039980,-1581.11940922,0.00019,2]
[312017468,1705551039989,-200.0,0.00019053,2]
[312017469,1705551039999,-159.715931,0.00019178,2]
[312017470,1705551040008,-172.193243,0.00019178,2]
[312017471,1705551040017,-1113.73927963,0.000195,2]
[312017472,1705551040026,-1066.94833283,0.00019733,2]
[312017473,1705551040039,-185.27753363,0.000199,2]
[312017474,1705551040048,-1196.96135251,0.0002,2]
[312017475,1705551040057,-678.05962952,0.0002,2]
[312017476,1705551040066,-154.98450155,0.0002,2]
[312017477,1705551040074,-154.9690062,0.0002,2]
[312017478,1705551040083,-155.56257646,0.0002,2]
[312017479,1705551040092,-849.59512114,0.0002,2]
[312017480,1705551040102,-155.38051604,0.0002,2]
[312017481,1705551040111,-2995.72102978,0.0002,2]
[312017482,1705551040120,-154.9690062,0.0002,2]
[312017483,1705551040130,-596.62825304,0.0002,2]
[312017484,1705551040139,-154.9690062,0.0002,2]
[312017485,1705551040148,-238.02437486,0.0002,2]
[312017487,1705551040157,-216.54029351,0.0002,2]
[312017489,1705551040167,-300.0,0.0002,2]
[312017490,1705551040176,-260.85215973,0.0002,2]
[312017491,1705551040185,-155.16448353,0.0002,2]
[312017492,1705551040194,-157.93778508,0.0002,2]
[312017493,1705551040203,-154.9690062,0.0002,2]
[312017494,1705551040212,-156.71629179,0.0002,2]
[312017495,1705551040222,-176.93243673,0.0002,2]
[312017496,1705551040231,-187.4856675,0.0002,2]
[312017497,1705551040241,-280.0,0.00020959,2]
[312017498,1705551040250,-1815.75822214,0.00021,2]
[312017499,1705551040259,-327.24959811,0.00021,2]
[312017500,1705551040269,-1824.64474457,0.00021,2]
[312017501,1705551040278,-11867.50859284,0.00021,2]
[312017502,1705551040289,-250.59967114,0.00021,2]
[312017503,1705551040299,-1066.94833283,0.00021302,2]
[312017504,1705551040309,-9112.94247828,0.0002155,2]
[312017505,1705551040318,-166.666666,0.00021918,2]
[312017506,1705551040327,-425.62034809,0.00022,2]
[312017507,1705551040336,-3959.1053351,0.00022,2]
[312017508,1705551040345,-154.9690062,0.00022,2]
[312017509,1705551040355,-293.23530462,0.00022,4]
[312017510,1705551040364,-155.15540084,0.00022,2]
[312017511,1705551040372,-166.666666,0.00022431,2]
[312017512,1705551040382,-1066.94833283,0.00022871,2]
[312017513,1705551040391,-166.666666,0.00022944,2]
[312017514,1705551040400,-391.0,0.00023054,7]
[312017515,1705551040409,-872.31863245,0.00023288,2]
[312017516,1705551040418,-500.0,0.00023288,2]
[312017517,1705551040427,-500.0,0.00023288,2]
[312017518,1705551040436,-500.0,0.00023288,2]
[312017519,1705551040445,-808.12475639,0.00023288,2]
[312017520,1705551040454,-872.31863245,0.00023288,2]
[312017521,1705551040463,-500.0,0.00023288,2]
[312017522,1705551040472,-500.0,0.00023288,2]
[312017523,1705551040482,-500.0,0.00023288,2]
[312017524,1705551040491,-500.0,0.00023288,2]
[312017525,1705551040500,-872.31863245,0.00023288,2]
[312017526,1705551040509,-808.12475639,0.00023288,2]
[312017527,1705551040519,-237.69797853,0.00023288,2]
[312017528,1705551040529,-500.0,0.00023288,2]
[312017529,1705551040541,-500.0,0.00023288,2]
[312017530,1705551040550,-872.31863245,0.00023288,2]
[312017531,1705551040559,-808.12475639,0.00023288,2]
[312017532,1705551040569,-500.0,0.00023288,2]
[312017533,1705551040578,-392.90611844,0.00023288,2]
[312017534,1705551040588,-872.31863245,0.00023288,2]
[312017535,1705551040597,-808.12475639,0.00023288,2]
[312017536,1705551040606,-872.31863245,0.00023288,2]
[312017537,1705551040615,-500.0,0.00023288,2]
[312017538,1705551040626,-500.0,0.00023288,2]
[312017539,1705551040635,-808.12475639,0.00023288,2]
[312017540,1705551040644,-872.31863245,0.00023288,2]
[312017541,1705551040653,-500.0,0.00023288,2]
[312017542,1705551040663,-500.0,0.00023288,2]
[312017543,1705551040672,-808.12475639,0.00023288,2]
[312017544,1705551040681,-808.12475639,0.00023288,2]
[312017545,1705551040690,-872.31863245,0.00023288,2]
[312017546,1705551040700,-500.0,0.00023288,2]
[312017547,1705551040709,-500.0,0.00023288,2]
[312017548,1705551040719,-500.0,0.00023288,2]
[312017549,1705551040729,-808.12475639,0.00023288,2]
[312017550,1705551040738,-872.31863245,0.00023288,2]
[312017551,1705551040747,-159.47934842,0.00023288,2]
[312017552,1705551040756,-500.0,0.00023288,2]
[312017553,1705551040765,-872.31863245,0.00023288,2]
[312017554,1705551040774,-808.12475639,0.00023288,2]
[312017555,1705551040784,-500.0,0.00023288,2]
[312017556,1705551040793,-500.0,0.00023288,2]
[312017557,1705551040806,-500.0,0.00023288,2]
[312017558,1705551040815,-808.12475639,0.00023288,2]
[312017559,1705551040824,-500.0,0.00023288,2]
[312017560,1705551040833,-872.31863245,0.00023288,2]
[312017561,1705551040841,-808.12475639,0.00023288,2]
[312017562,1705551040850,-872.31863245,0.00023288,2]
[312017563,1705551040859,-808.12475639,0.00023288,2]
[312017564,1705551040868,-872.31863245,0.00023288,2]
[312017565,1705551040877,-808.12475639,0.00023288,2]
[312017566,1705551040885,-872.31863245,0.00023288,2]
[312017567,1705551040894,-500.0,0.00023288,2]
[312017568,1705551040904,-808.12475639,0.00023288,2]
[312017569,1705551040913,-500.0,0.00023288,2]
[312017570,1705551040922,-872.31863245,0.00023288,2]
[312017571,1705551040932,-500.0,0.00023288,2]
[312017572,1705551040941,-872.31863245,0.00023288,2]
[312017573,1705551040950,-808.12475639,0.00023288,2]
[312017574,1705551040959,-872.31863245,0.00023288,2]
[312017575,1705551040969,-500.0,0.00023288,2]
[312017576,1705551040978,-500.0,0.00023288,2]
[312017577,1705551040987,-500.0,0.00023288,2]
[312017578,1705551040997,-808.12475639,0.00023288,2]
[312017579,1705551041006,-872.31863245,0.00023288,2]
[312017580,1705551041016,-872.31863245,0.00023288,2]
[312017581,1705551041025,-808.12475639,0.00023288,2]
[312017582,1705551041035,-500.0,0.00023288,2]
[312017583,1705551041045,-872.31863245,0.00023288,2]
[312017584,1705551041054,-808.12475639,0.00023288,2]
[312017585,1705551041062,-808.12475639,0.00023288,2]
[312017586,1705551041073,-500.0,0.00023288,2]
[312017587,1705551041082,-500.0,0.00023288,2]
[312017588,1705551041091,-808.12475639,0.00023288,2]
[312017589,1705551041100,-500.0,0.00023288,2]
[312017590,1705551041110,-872.31863245,0.00023288,2]
[312017591,1705551041119,-808.12475639,0.00023288,2]
[312017592,1705551041128,-500.0,0.00023288,2]
[312017593,1705551041137,-500.0,0.00023288,2]
[312017594,1705551041146,-872.31863245,0.00023288,2]
[312017595,1705551041155,-808.12475639,0.00023288,2]
[312017596,1705551041164,-500.0,0.00023288,2]
[312017597,1705551041173,-500.0,0.00023288,2]
[312017598,1705551041182,-872.31863245,0.00023288,2]
[312017599,1705551041191,-168.21310528,0.00023288,2]
[312017600,1705551041200,-500.0,0.00023288,2]
[312017601,1705551041209,-808.12475639,0.00023288,2]
[312017602,1705551041218,-872.31863245,0.00023288,2]
[312017603,1705551041227,-808.12475639,0.00023288,2]
[312017604,1705551041236,-500.0,0.00023288,2]
[312017605,1705551041245,-872.31863245,0.00023288,2]
[312017606,1705551041254,-808.12475639,0.00023288,2]
[312017607,1705551041263,-500.0,0.00023288,2]
[312017608,1705551041272,-872.31863245,0.00023288,2]
[312017609,1705551041284,-808.12475639,0.00023288,2]
[312017610,1705551041294,-490.67097793,0.00023288,2]
[312017611,1705551041303,-808.12475639,0.00023288,2]
[312017612,1705551041313,-872.31863245,0.00023288,2]
[312017613,1705551041322,-872.31863245,0.00023288,2]
[312017614,1705551041331,-872.31863245,0.00023288,2]
[312017615,1705551041340,-808.12475639,0.00023288,2]
[312017616,1705551041349,-872.31863245,0.00023288,2]
[312017617,1705551041358,-808.12475639,0.00023288,2]
[312017618,1705551041367,-808.12475639,0.00023288,2]
[312017619,1705551041377,-872.31863245,0.00023288,2]
[312017620,1705551041386,-808.12475639,0.00023288,2]
[312017621,1705551041395,-872.31863245,0.00023288,2]
[312017622,1705551041404,-872.31863245,0.00023288,2]
[312017623,1705551041413,-872.31863245,0.00023288,2]
[312017624,1705551041422,-872.31863245,0.00023288,2]
[312017625,1705551041431,-808.12475639,0.00023288,2]
[312017626,1705551041441,-872.31863245,0.00023288,2]
[312017627,1705551041520,-872.31863245,0.00023288,2]
[312017628,1705551041531,-808.12475639,0.00023288,2]
[312017629,1705551041540,-164.8698371,0.00023288,2]
[312017630,1705551041549,-4580.22790319,0.00023288,2]
[312017631,1705551041558,-4580.22790319,0.00023288,2]
[312017632,1705551041567,-486.6132648,0.00023288,2]
[312017633,1705551041577,-4580.22790319,0.00023288,2]
[312017634,1705551041586,-4580.22790319,0.00023288,2]
[312017635,1705551041596,-763.27880346,0.00023288,2]
[312017637,1705551041605,-763.27880346,0.00023288,2]
[312017639,1705551041613,-763.27880346,0.00023288,2]
[312017641,1705551041623,-763.27880346,0.00023288,2]
[312017643,1705551041632,-499.99999999,0.00023288,2]
[312017644,1705551041641,-4580.22790316,0.00023288,2]
[312017646,1705551041650,-915.93456412,0.00023288,2]
[312017648,1705551041659,-441.58419443,0.00023288,4]
[312017650,1705551041669,-500.0,0.00023288,4]
[312017652,1705551041678,-500.0,0.00023288,4]
[312017654,1705551041687,-500.0,0.00023288,4]
[312017656,1705551041696,-500.0,0.00023288,4]
[312017658,1705551041705,-500.0,0.00023288,4]
[312017660,1705551041715,-500.0,0.00023288,4]
[312017662,1705551041724,-511.85874956,0.00023288,4]
[312017663,1705551041733,-500.0,0.00023288,4]
[312017664,1705551041742,-500.0,0.00023288,4]
[312017665,1705551041752,-500.0,0.00023288,4]
[312017666,1705551041761,-500.0,0.00023288,4]
[312017668,1705551041771,-500.0,0.00023288,4]
[312017670,1705551041780,-500.0,0.00023288,4]
[312017672,1705551041790,-500.0,0.00023288,4]
[312017673,1705551041799,-500.0,0.00023288,4]
[312017675,1705551041808,-500.0,0.00023288,4]
[312017677,1705551041817,-500.0,0.00023288,4]
[312017679,1705551041826,-527.78772865,0.00023288,4]
[312017681,1705551041836,-500.0,0.00023288,4]
[312017683,1705551041845,-500.0,0.00023288,4]
[312017685,1705551041855,-500.0,0.00023288,4]
[312017687,1705551041863,-500.0,0.00023288,4]
[312017689,1705551041873,-500.0,0.00023288,4]
[312017691,1705551041882,-500.0,0.00023288,4]
[312017693,1705551041891,-500.0,0.00023288,4]
[312017695,1705551041900,-500.0,0.00023288,4]
[312017697,1705551041909,-500.0,0.00023288,4]
[312017698,1705551041919,-500.0,0.00023288,4]
[312017699,1705551041928,-329.50276792,0.00023288,4]
[312017700,1705551041936,-500.0,0.00023288,4]
[312017701,1705551041945,-500.0,0.00023288,4]
[312017702,1705551041954,-500.0,0.00023288,4]
[312017703,1705551041963,-500.0,0.00023288,4]
[312017704,1705551041972,-500.0,0.00023288,4]
[312017706,1705551041981,-500.0,0.00023288,4]
[312017708,1705551041990,-500.0,0.00023288,4]
[312017710,1705551041999,-500.0,0.00023288,4]
[312017712,1705551042008,-500.0,0.00023288,4]
[312017714,1705551042017,-500.0,0.00023288,4]
[312017716,1705551042026,-500.0,0.00023288,4]
[312017718,1705551042036,-500.0,0.00023288,4]
[312017720,1705551042045,-500.0,0.00023288,4]
[312017722,1705551042054,-500.0,0.00023288,4]
[312017724,1705551042063,-500.0,0.00023288,4]
[312017726,1705551042072,-500.0,0.00023288,4]
[312017728,1705551042082,-500.0,0.00023288,4]
[312017730,1705551042090,-500.0,0.00023288,4]
[312017732,1705551042099,-500.0,0.00023288,4]
[312017734,1705551042109,-500.0,0.00023288,4]
[312017736,1705551042118,-500.0,0.00023288,4]
[312017738,1705551042126,-500.0,0.00023288,4]
[312017740,1705551042135,-500.0,0.00023288,4]
[312017742,1705551042144,-500.0,0.00023288,4]
[312017744,1705551042153,-500.0,0.00023288,4]
[312017746,1705551042162,-500.0,0.00023288,4]
[312017748,1705551042171,-500.0,0.00023288,4]
[312017750,1705551042180,-500.0,0.00023288,4]
[312017751,1705551042188,-452.46716951,0.00023288,4]
[312017753,1705551042197,-1028.85847373,0.00023288,4]
[312017755,1705551042207,-1028.85847373,0.00023288,4]
[312017757,1705551042216,-1028.85847373,0.00023288,4]
[312017759,1705551042225,-1028.85847373,0.00023288,4]
[312017761,1705551042234,-1028.85847373,0.00023288,4]
[312017763,1705551042243,-1028.85847373,0.00023288,4]
[312017765,1705551042252,-1028.85847373,0.00023288,4]
[312017767,1705551042262,-1028.85847373,0.00023288,4]
[312017768,1705551042271,-1028.85847373,0.00023288,4]
[312017769,1705551042282,-1028.85847373,0.00023288,4]
[312017770,1705551042291,-1543.28771059,0.00023288,4]
[312017771,1705551042300,-166.666666,0.00023456,2]
[312017772,1705551042309,-1506.19504484,0.00023748,2]
[312017773,1705551042319,-166.666666,0.00023969,2]
[312017774,1705551042328,-1830.62942806,0.00024,2]
[312017775,1705551042338,-4010.78536694,0.00024,2]
[312017776,1705551042347,-2000.0,0.000243,2]
[312017777,1705551042356,-2000.0,0.0002431,2]
[312017778,1705551042365,-2000.0,0.0002432,2]
[312017779,1705551042374,-2000.0,0.0002433,2]
[312017780,1705551042383,-2000.0,0.0002434,2]
[312017781,1705551042392,-2000.0,0.0002435,2]
[312017782,1705551042401,-2000.0,0.0002436,2]
[312017783,1705551042410,-2000.0,0.0002437,2]
[312017784,1705551042419,-2000.0,0.0002438,2]
[312017785,1705551042428,-2000.0,0.0002439,2]
[312017786,1705551042437,-2000.0,0.000244,2]
[312017787,1705551042447,-2000.0,0.0002441,2]
[312017788,1705551042455,-2000.0,0.0002442,2]
[312017789,1705551042464,-2000.0,0.0002443,2]
[312017790,1705551042473,-2000.0,0.0002444,2]
[312017791,1705551042482,-1066.94833283,0.0002444,2]
[312017792,1705551042491,-2000.0,0.0002445,2]
[312017793,1705551042501,-2000.0,0.0002446,2]
[312017794,1705551042510,-2000.0,0.0002447,2]
[312017795,1705551042520,-2000.0,0.0002448,2]
[312017796,1705551042530,-166.666666,0.00024482,2]
[312017797,1705551042541,-2000.0,0.0002449,2]
[312017798,1705551042550,-2000.0,0.000245,2]
[312017799,1705551042559,-2000.0,0.0002451,2]
[312017800,1705551042568,-2000.0,0.0002452,2]
[312017801,1705551042577,-2000.0,0.0002453,2]
[312017802,1705551042586,-2000.0,0.0002454,2]
[312017803,1705551042595,-2000.0,0.0002455,2]
[312017804,1705551042604,-2000.0,0.0002456,2]
[312017805,1705551042614,-3862.689992,0.0002457,2]
[312017806,1705551042624,-581.13615827,0.00024657,2]
[312017807,1705551042634,-200.0,0.00024658,2]
[312017808,1705551042643,-280.0,0.00024658,2]
[312017809,1705551042653,-497.89805688,0.0002495,5]
[312017810,1705551042663,-683.41671788,0.00025,2]
[312017811,1705551042672,-3000.0,0.00025,2]
[312017812,1705551042682,-250.5504387,0.00025,2]
[312017813,1705551042691,-1045.45812768,0.00025,2]
[312017814,1705551042702,-4718.82684458,0.00025,2]
[312017815,1705551042711,-274.5510469,0.00025,2]
[312017816,1705551042721,-1038.14311611,0.00025,2]
[312017817,1705551042730,-14181.67024887,0.00025,2]
[312017818,1705551042739,-209.65976541,0.00025,2]
[312017819,1705551042748,-294.64825726,0.00025,2]
[312017820,1705551042757,-258.44452491,0.00025,2]
[312017821,1705551042766,-7193.15698043,0.00025297,2]
[312017822,1705551042776,-200.0,0.0002536,7]
[312017823,1705551042786,-348.0,0.0002536,7]
[312017824,1705551042796,-722.46780766,0.0002536,2]
[312017825,1705551042806,-722.46780766,0.0002536,2]
[312017826,1705551042815,-722.46780766,0.0002536,2]
[312017827,1705551042825,-722.46780766,0.0002536,2]
[312017828,1705551042835,-722.46780766,0.0002536,2]
[312017829,1705551042845,-722.46780766,0.0002536,2]
[312017830,1705551042854,-722.46780766,0.0002536,2]
[312017831,1705551042864,-722.46780766,0.0002536,2]
[312017832,1705551042873,-722.46780766,0.0002536,2]
[312017833,1705551042883,-722.46780766,0.0002536,2]
[312017834,1705551042892,-510.790574,0.00025924,2]
[312017835,1705551042972,-526.29712741,0.00026,2]
[312017836,1705551042983,-241.07273581,0.00026,2]
[312017837,1705551042993,-60231.32990529,0.00026162,2]
[312017838,1705551043003,-50000.0,0.00026309,2]
[312017839,1705551043013,-941.73384665,0.000264,2]
[312017840,1705551043022,-50000.0,0.00026456,2]
[312017841,1705551043032,-50000.0,0.00026604,2]
[312017842,1705551043041,-50000.0,0.00026751,2]
[312017843,1705551043050,-86411.09627253,0.00026782,2]
[312017844,1705551043060,-1252.53765477,0.00026898,2]
[312017845,1705551043077,-48747.46234523,0.00026898,2]
[312017846,1705551043087,-50000.0,0.00027045,2]
[312017847,1705551043096,-50000.0,0.00027192,2]
[312017848,1705551043106,-50000.0,0.00027192,2]
[312017849,1705551043115,-31524.87473691,0.00027192,2]
[312017850,1705551043125,-8183.71065061,0.00027192,2]
[312017851,1705551043135,-1097.328165,0.00027192,2]
[312017852,1705551043144,-1097.328165,0.00027192,2]
[312017853,1705551043153,-2258.060024,0.00027192,2]
[312017854,1705551043163,-2258.060024,0.00027192,2]
[312017855,1705551043174,-153.756851,0.00027192,2]
[312017856,1705551043183,-155.0,0.00027397,2]
[312017857,1705551043194,-150.95004265,0.00027397,7]
[312017858,1705551043204,-388.487504,0.00027397,2]
[312017859,1705551043213,-414.38667,0.00027397,2]
[312017860,1705551043223,-2057.56,0.00027397,3]
[312017861,1705551043233,-261.3528024,0.000274,2]
[312017862,1705551043242,-3318.9973618,0.000275,2]
[312017863,1705551043252,-15614.83727926,0.000275,2]
[312017864,1705551043262,-636.08669233,0.0002772,2]
[312017866,1705551043272,-200.0,0.00027896,15]
[312017868,1705551043283,-200.0,0.00027896,15]
[312017870,1705551043292,-368.0,0.00027896,15]
[312017871,1705551043302,-153.52997654,0.00027999,2]
[312017872,1705551043311,-305.46439516,0.00028,2]
[312017873,1705551043320,-345.5207472,0.00028,2]
[312017874,1705551043330,-290.00241025,0.00028,2]
[312017875,1705551043339,-154.9690062,0.00028,10]
[312017876,1705551043349,-6539.94705553,0.00028,2]
[312017877,1705551043358,-151.0,0.00028095,2]
[312017878,1705551043367,-388.487504,0.00028415,2]
[312017879,1705551043377,-414.38667,0.00028415,2]
[312017880,1705551043387,-18654.9559391,0.00028749,2]
[312017881,1705551043396,-155.0,0.00028767,2]
[312017883,1705551043405,-5488.92,0.00028799,2]
[312017884,1705551043415,-5488.92,0.00028799,2]
[312017885,1705551043424,-5488.92,0.00028799,2]
[312017886,1705551043433,-5488.92,0.00028799,2]
[312017887,1705551043442,-5488.92,0.00028799,2]
[312017888,1705551043451,-5488.92,0.00028799,2]
[312017890,1705551043460,-5488.92,0.00028799,2]
[312017892,1705551043469,-5488.92,0.00028799,2]
[312017894,1705551043479,-5488.92,0.00028799,2]
[312017896,1705551043487,-5488.92,0.00028799,2]
[312017898,1705551043497,-119970.67569572,0.000288,2]
[312017900,1705551043506,-2258.060024,0.000288,2]
[312017902,1705551043516,-2258.060024,0.000288,2]
[312017904,1705551043528,-1097.328165,0.00028999,2]
[312017905,1705551043539,-1097.328165,0.00028999,2]
[312017906,1705551043548,-1892.76557459,0.00028999,2]
[312017907,1705551043558,-150.0,0.00028999,2]
[312017908,1705551043567,-2455.73923901,0.00029,2]
[312017910,1705551043577,-154.9690062,0.00029,2]
[312017912,1705551043586,-832.38723413,0.00029,2]
[312017913,1705551043595,-79662.70846132,0.00029,2]
[312017914,1705551043607,-2036.10625444,0.00029,2]
[312017915,1705551043618,-151.0,0.00029,2]
[312017916,1705551043627,-151.0,0.00029,2]
[312017918,1705551043636,-620.80433462,0.00029106,2]
[312017920,1705551043646,-200.4984224,0.00029315,2]
[312017922,1705551043655,-242.743,0.00029377,2]
[312017924,1705551043665,-388.487504,0.00029432,2]
[312017926,1705551043674,-414.38667,0.00029432,2]
[312017928,1705551043683,-213.00013457,0.000295,30]
[312017930,1705551043692,-159.715931,0.00029715,2]
[312017932,1705551043701,-1674.35163701,0.00029813,2]
[312017934,1705551043710,-1817.23032753,0.00029813,2]
[312017936,1705551043720,-2167.50484392,0.00029813,2]
[312017938,1705551043729,-4629.37451759,0.00029813,2]
[312017940,1705551043738,-1157.34362939,0.00029813,2]
[312017942,1705551043747,-293.31441532,0.00029813,2]
[312017944,1705551043756,-406.08420108,0.000299,2]
[312017946,1705551043766,-151.0,0.00029904,2]
[312017948,1705551043775,-154.9690062,0.0003,2]
[312017950,1705551043785,-195.1690538,0.0003,4]
[312017951,1705551043793,-650.89335401,0.0003,4]
[312017953,1705551043802,-154.9690062,0.0003,4]
[312017955,1705551043811,-682.23213824,0.0003,3]
[312017957,1705551043821,-154.9690062,0.0003,2]
[312017959,1705551043830,-243.91959085,0.0003,4]
[312017961,1705551043839,-283.01176432,0.0003,3]
[312017963,1705551043849,-640.81580837,0.0003,4]
[312017964,1705551043859,-232.19740588,0.0003,4]
[312017965,1705551043868,-166.71322997,0.0003,2]
[312017966,1705551043878,-29885.97240427,0.0003,2]
[312017967,1705551043887,-299.40501043,0.0003,2]
[312017968,1705551043897,-6192.60917587,0.0003,2]
[312017969,1705551043907,-23500.40849315,0.0003,2]
[312017970,1705551043916,-282632.40474255,0.0003,2]
[312017971,1705551043926,-1908.4624739,0.0003,2]
[312017972,1705551043935,-687.89788967,0.0003,4]
[312017973,1705551043945,-287.25958641,0.0003,4]
[312017974,1705551043954,-152.118286,0.0003,2]
[312017975,1705551043964,-1097.328165,0.0003,2]
[312017976,1705551043974,-1097.328165,0.0003,2]
[312017977,1705551043983,-2258.060024,0.0003,2]
[312017978,1705551043993,-2258.060024,0.0003,2]
[312017979,1705551044003,-273.0,0.0003,2]
[312017980,1705551044016,-2268.46994375,0.0003007,3]
[312017981,1705551044025,-1320.97,0.00030136,2]
[312017982,1705551044035,-153.0,0.00030137,2]
[312017983,1705551044045,-153.0,0.00030137,2]
[312017984,1705551044055,-198.9993253,0.00030137,2]
[312017985,1705551044064,-155.0,0.00030137,2]
[312017986,1705551044074,-1320.97,0.0003041,2]
[312017987,1705551044084,-388.487504,0.0003045,2]
[312017988,1705551044094,-414.38667,0.0003045,2]
[312017989,1705551044103,-985.15924715,0.000305,2]
[312017990,1705551044112,-6037.60396938,0.00030502,2]
[312017991,1705551044122,-620.04021673,0.00030561,2]
[312017992,1705551044131,-1320.97,0.00030684,2]
[312017993,1705551044141,-200.0,0.00030686,15]